bitfinex-derivatives/quotes_ETHF0:USTF0_20241230
["timestamp","ask_amount","ask_price","bid_price","bid_amount"]
[1735560223294,0.29217,3428.7,3428.5,0.29218]
[1735560223497,0.06206794,3428.6,3428.5,0.29218]
[1735560224391,0.07095692,3428.6,3428.5,0.29218]
[1735560225291,0.07095692,3428.6,3428.3,3.2078]
[1735560225592,0.07095692,3428.5,3428.3,3.2078]
[1735560225795,0.36313692,3428.5,3428.4,0.29219]
[1735560226187,0.36313692,3428.5,3428.3,3.2078]
[1735560226188,0.07095692,3428.5,3428.3,3.2078]
[1735560226391,0.29219,3428.4,3428.3,3.49999]
[1735560226587,0.36314692,3428.4,3428.3,3.49999]
[1735560226793,0.07095692,3428.4,3428.0,1.164]
[1735560226993,0.29221,3428.2,3428.0,1.45622]
[1735560227291,0.29221,3428.2,3428.0,1.164]
[1735560227493,0.07095692,3428.1,3428.0,0.29222]
[1735560227895,0.29224,3427.9,3427.7,0.29224]
[1735560228099,0.29222,3428.0,3427.7,0.29224]
[1735560228301,0.74224,3427.8,3427.7,0.29224]
[1735560228497,0.45,3427.8,3427.7,0.29224]
[1735560228800,0.52095692,3427.8,3427.7,0.29224]
[1735560229402,0.52095692,3427.8,3427.6,2.75497461]
[1735560229600,0.07095692,3427.7,3427.5,1.6118]
[1735560229801,0.07095692,3427.7,3427.6,0.29225]
[1735560230594,0.07095692,3427.7,3427.6,2.62202461]
[1735560231697,0.07095692,3427.7,3427.6,3.90087294]
[1735560233395,0.07095692,3427.7,3427.6,2.62202461]
[1735560233796,0.07095692,3427.7,3427.6,3.90088394]
[1735560233997,0.07095692,3427.7,3427.6,2.62202461]
[1735560234607,0.07095692,3427.7,3427.6,3.9008798]
[1735560235595,0.07095692,3427.7,3427.6,2.62202461]
[1735560236500,0.07095692,3427.7,3427.3,0.29227]
[1735560236695,0.29227,3427.4,3427.2,9.80813144]
[1735560237009,0.10365065,3427.3,3427.2,9.51585144]
[1735560237306,0.10365065,3427.3,3427.2,9.80813144]
[1735560237695,0.11100768,3427.3,3427.2,0.72938]
[1735560238019,0.11100768,3427.3,3427.2,2.00832137]
[1735560238602,0.11100768,3427.3,3427.2,2.30032137]
[1735560238803,0.11100768,3427.3,3427.2,6.35195254]
[1735560239001,0.11100768,3427.3,3427.2,7.51595254]
[1735560239202,0.4529,3428.1,3427.2,7.22367254]
[1735560239502,0.4529,3428.1,3428.0,0.29222]
[1735560240104,0.4529,3428.1,3428.0,3.50002]
[1735560240710,0.4529,3428.1,3428.0,3.2078]
[1735560241206,0.4529,3428.1,3428.0,3.50002]
[1735560242705,0.4529,3428.1,3428.0,0.29222]
[1735560242901,0.4529,3428.1,3427.8,3.6354]
[1735560243297,0.4529,3428.1,3428.0,0.29222]
[1735560243710,0.74511,3428.1,3427.9,0.29223]
[1735560243902,0.4529,3428.1,3427.8,3.6354]
[1735560244100,0.4529,3428.1,3427.9,0.29222]
[1735560244101,0.03268546,3428.0,3427.9,0.29222]
[1735560244801,0.03268546,3428.0,3427.7,0.8876]
[1735560244802,0.03268546,3428.0,3427.7,0.4511]
[1735560245113,0.03268546,3427.9,3427.7,0.4511]
[1735560245301,0.03268546,3427.9,3427.7,0.74334]
[1735560245501,0.03268546,3427.9,3427.8,0.29224]
[1735560248007,0.03913951,3427.9,3427.8,0.29224]
[1735560250404,0.03913951,3427.9,3427.8,3.50004]
[1735560251607,0.03913951,3427.9,3427.8,7.55307202]
[1735560252909,0.03913951,3427.9,3427.8,8.83181352]
[1735560254509,0.07171046,3427.9,3427.8,8.83181352]
[1735560255709,3.57174046,3427.9,3427.8,5.33177352]
[1735560255913,3.57174046,3427.9,3427.8,1.07422352]
[1735560255914,8.57174046,3427.9,3427.8,1.07422352]
[1735560256104,8.57174046,3427.9,3427.8,0.28572352]
[1735560256305,10.90151507,3427.9,3427.8,0.28572352]
[1735560256809,0.29224,3427.8,3427.7,6.15875139]
[1735560257014,0.29224,3427.8,3427.7,3.82275135]
[1735560257206,0.29231,3427.0,3426.9,3.82275135]
[1735560257406,3.50011,3427.0,3426.9,3.82275135]
[1735560257607,3.57182046,3427.0,3426.9,3.82275135]
[1735560258713,0.29235,3426.5,3426.4,0.29235]
[1735560259013,0.29235,3426.5,3426.3,0.29236]
[1735560259813,0.07919027,3426.4,3426.3,0.29236]
[1735560260112,0.07919027,3426.4,3426.2,0.4508]
[1735560260113,0.37155027,3426.4,3426.2,0.4508]
[1735560260413,0.07919027,3426.4,3426.3,0.29237]
[1735560260809,0.07919027,3426.4,3426.2,3.3708]
[1735560261014,0.07919027,3426.4,3426.0,3.2078]
[1735560261310,0.07919027,3426.4,3425.6,0.4344]
[1735560261508,7.40896488,3426.4,3425.5,3.2078]
[1735560261715,0.29243,3425.5,3425.4,11.34843931]
[1735560261905,3.50023,3425.5,3425.4,11.34843931]
[1735560262212,3.2078,3425.5,3425.4,11.34843931]
[1735560262410,3.50023,3425.5,3425.4,11.34843931]
[1735560262803,3.57942027,3425.5,3425.4,11.34843931]
[1735560263210,5.61676488,3425.5,3425.0,1.0]
[1735560263407,0.29247,3425.1,3425.0,1.0]
[1735560263708,5.61676488,3425.5,3425.0,1.0]
[1735560263709,3.2078,3425.5,3425.0,1.0]
[1735560264013,0.07919027,3425.1,3425.0,1.0]
[1735560264411,0.37166027,3425.1,3425.0,1.0]
[1735560265116,0.07919027,3425.1,3425.0,1.29248]
[1735560265707,0.07919027,3425.1,3425.0,6.83005461]
[1735560266018,0.11183623,3425.1,3425.0,6.83005461]
[1735560267116,0.11183623,3425.1,3425.0,9.75005461]
[1735560267711,0.29242,3425.7,3425.0,9.45757461]
[1735560267907,0.29242,3425.7,3425.3,0.29245]
[1735560268213,0.29242,3425.7,3425.0,6.53757461]
[1735560268214,0.29241,3425.8,3425.4,0.29244]
[1735560268407,3.2078,3426.4,3425.5,3.2078]
[1735560268611,3.2078,3426.4,3425.7,0.29241]
[1735560268806,3.2078,3426.4,3425.6,0.4479]
[1735560269012,0.29237,3426.3,3425.9,0.29239]
[1735560269405,3.2078,3426.4,3425.6,0.8997]
[1735560269606,0.29239,3426.1,3425.8,0.2924]
[1735560270310,0.2924,3425.9,3425.6,1.19212]
[1735560270613,0.2924,3425.9,3425.6,0.74032]
[1735560270923,2.32977461,3426.2,3425.6,0.4479]
[1735560271125,0.29242,3425.7,3425.6,0.4479]
[1735560271322,3.2078,3425.7,3425.2,1.164]
[1735560271514,0.29243,3425.5,3425.1,0.8426]
[1735560271817,2.32977461,3425.6,3425.1,1.13506]
[1735560272016,2.32977461,3425.6,3425.1,0.8426]
[1735560272217,0.29243,3425.6,3425.3,0.29244]
[1735560272422,3.2078,3425.7,3425.4,0.29244]
[1735560272717,3.2078,3425.7,3425.1,0.8426]
[1735560273110,0.29246,3425.2,3425.1,0.4175]
[1735560273310,2.32977461,3425.6,3425.1,0.4175]
[1735560273615,2.32977461,3425.6,3425.1,0.70997]
[1735560273616,0.29246,3425.3,3425.1,0.70997]
[1735560274113,0.3327668,3425.4,3425.2,0.29246]
[1735560274515,0.29245,3425.3,3425.1,0.70996]
[1735560274719,0.33885782,3425.2,3425.1,0.4175]
[1735560275017,0.04639782,3425.2,3425.1,0.4175]
[1735560275414,0.33885782,3425.2,3425.1,0.4175]
[1735560275817,0.33885782,3425.2,3425.0,1.0]
[1735560275818,0.29247,3425.1,3425.0,1.0]
[1735560276817,0.33886782,3425.1,3425.0,1.0]
[1735560277924,0.04639782,3425.1,3425.0,1.29248]
[1735560278423,3.2078,3425.7,3425.0,1.29248]
[1735560278424,3.50022,3425.7,3425.0,1.8706]
[1735560278721,3.50022,3425.7,3425.5,0.29243]
[1735560278918,3.50022,3425.7,3425.6,0.4139]
[1735560281017,3.53297541,3425.7,3425.6,0.4139]
[1735560281216,3.24055541,3425.7,3425.6,0.4139]
[1735560281414,3.24055541,3425.7,3425.6,1.16313]
[1735560282017,3.24055541,3425.7,3425.6,0.8707]
[1735560282018,3.53918716,3425.7,3425.6,0.8707]
[1735560282519,3.53918716,3425.7,3425.6,0.4139]
[1735560282920,3.24676716,3425.7,3425.2,0.4206]
[1735560283225,0.29245,3425.3,3425.2,0.4206]
[1735560283421,0.29245,3425.4,3425.3,0.29245]
[1735560283729,3.53918716,3425.7,3425.5,0.29243]
[1735560283914,3.50022,3425.7,3425.5,0.29243]
[1735560284120,0.33139716,3425.6,3425.5,0.29243]
[1735560284320,0.03896716,3425.6,3425.2,0.4206]
[1735560284519,3.06086461,3425.5,3425.0,1.0]
[1735560284715,0.29247,3425.1,3425.0,1.0]
[1735560285015,0.33143716,3425.1,3425.0,1.0]
[1735560285523,0.03896716,3425.1,3425.0,1.29248]
[1735560295528,0.33143716,3425.1,3425.0,1.29248]
[1735560295730,0.33143716,3425.1,3425.0,1.0]
[1735560296125,0.33143716,3425.1,3425.0,1.29248]
[1735560296126,0.03896716,3425.1,3425.0,1.29248]
[1735560296329,0.33143716,3425.1,3425.0,1.0]
[1735560296930,0.33143716,3425.1,3425.0,1.29248]
[1735560297931,0.33143716,3425.1,3425.0,1.0]
[1735560298529,0.33143716,3425.1,3425.0,1.29248]
[1735560299532,0.33143716,3425.1,3425.0,1.0]
[1735560300229,0.33143716,3425.1,3425.0,1.29248]
[1735560300635,0.33143716,3425.1,3425.0,1.0]
[1735560301431,0.33143716,3425.1,3425.0,1.29248]
[1735560301930,0.33143716,3425.1,3425.0,1.0]
[1735560303835,9.20948853,3425.1,3425.0,1.0]
[1735560304140,9.20948853,3425.1,3425.0,0.9989]
[1735560304341,4.20948853,3425.1,3425.0,0.9989]
[1735560305344,0.77033881,3425.1,3425.0,0.9989]
[1735560306445,0.47786881,3425.1,3425.0,4.21138]
[1735560306747,0.03896716,3425.1,3425.0,4.21138]
[1735560306947,0.33143716,3425.1,3425.0,3.9189]
[1735560307445,0.33143716,3425.1,3425.0,4.21138]
[1735560307841,0.33143716,3425.1,3425.0,3.9189]
[1735560308338,0.33143716,3425.1,3425.0,4.21138]
[1735560309147,2.62853974,3425.1,3425.0,4.21138]
[1735560309540,2.62853974,3425.1,3425.0,3.9189]
[1735560311941,2.62853974,3425.1,3425.0,4.21138]
[1735560313846,2.62853974,3425.1,3425.0,3.9189]
[1735560314047,0.33143716,3425.1,3425.0,3.9189]
[1735560315043,0.03896716,3425.1,3425.0,4.21138]
[1735560315341,2.62853974,3425.1,3425.0,4.21138]
[1735560316043,2.33606974,3425.1,3425.0,4.21138]
[1735560318340,0.03896716,3425.1,3425.0,8.71112369]
[1735560319550,0.03896716,3425.1,3425.0,4.21138]
[1735560320648,2.29710258,3425.2,3425.0,10.7484183]
[1735560320855,1.61140258,3425.2,3425.1,3.50027]
[1735560321157,0.92570258,3425.2,3425.1,3.50027]
[1735560321749,3.44565387,3425.6,3425.1,3.2078]
[1735560321954,3.44565387,3425.6,3425.5,3.50023]
[1735560322451,3.44565387,3425.6,3425.5,6.42023]
[1735560323149,0.29241,3425.9,3425.8,0.29241]
[1735560323354,3.44565387,3426.0,3425.6,0.4413]
[1735560323756,0.2924,3425.9,3425.8,0.2924]
[1735560323956,3.44565387,3426.0,3425.9,0.2924]
[1735560324454,3.73804387,3426.0,3425.9,2.92]
[1735560324654,0.29239,3426.0,3425.9,2.92]
[1735560326650,0.29243,3425.6,3425.5,6.1278]
[1735560327152,0.29243,3425.6,3425.5,3.2078]
[1735560327757,0.29242,3425.7,3425.6,0.29242]
[1735560328060,0.29243,3425.6,3425.5,3.50023]
[1735560329056,0.29243,3425.6,3425.5,3.2078]
[1735560329451,2.32977461,3425.6,3425.3,4.54293985]
[1735560329657,0.29244,3425.4,3425.3,4.54293985]
[1735560330248,0.29245,3425.3,3425.2,4.54293985]
[1735560331760,0.4351,3425.5,3425.1,3.91787]
[1735560331761,0.29246,3425.2,3425.1,3.91787]
[1735560332056,0.29246,3425.2,3425.1,3.6254]
[1735560333757,0.29246,3425.2,3425.1,3.2078]
[1735560337166,0.29246,3425.2,3425.1,3.50027]
[1735560338868,0.29246,3425.2,3425.1,3.2078]
[1735560339066,0.29246,3425.2,3425.0,3.9189]
[1735560339264,0.29247,3425.1,3425.0,0.3134]
[1735560339458,10.53757461,3425.2,3424.9,3.85743985]
[1735560339665,0.29248,3425.0,3424.9,3.33273985]
[1735560340060,5.29248,3425.0,3424.9,3.33273985]
[1735560340270,5.0,3425.0,3424.8,6.77127555]
[1735560340567,2.62226461,3424.9,3424.8,6.77127555]
[1735560340767,2.32977461,3424.9,3424.3,6.77127555]
[1735560340972,0.29253,3424.4,3424.3,6.77127555]
[1735560341163,6.12507922,3424.4,3424.3,6.14265555]
[1735560341363,0.29255,3424.1,3424.0,7.54015379]
[1735560341570,5.83012461,3424.1,3424.0,7.54015379]
[1735560341764,10.83012461,3424.1,3424.0,7.54015379]
[1735560341965,5.83012461,3424.1,3424.0,7.54015379]
[1735560342660,0.2926,3423.5,3423.3,0.29262]
[1735560343063,0.29261,3423.4,3423.3,0.29262]
[1735560343570,0.29261,3423.4,3423.3,3.21662]
[1735560343965,3.44383553,3423.9,3423.3,2.924]
[1735560344165,0.2926,3423.5,3423.3,0.29262]
[1735560344572,0.2926,3423.5,3423.4,2.924]
[1735560355175,6.26897461,3424.1,3423.4,2.924]
[1735560355380,0.29257,3424.0,3423.5,2.77457461]
[1735560355584,0.29257,3423.9,3423.8,3.2078]
[1735560357078,0.29257,3423.9,3423.8,6.1318]
[1735560357677,0.29257,3423.9,3423.8,2.924]
[1735560360183,0.29258,3423.8,3423.7,0.4142]
[1735560360586,0.29258,3423.8,3423.7,3.3382]
[1735560366288,0.29258,3423.8,3423.5,0.4448]
[1735560366289,0.2926,3423.6,3423.5,0.4448]
[1735560369290,0.29263,3423.2,3423.1,0.4238]
[1735560369788,0.29263,3423.2,3423.1,3.3478]
[1735560370682,0.29263,3423.2,3423.1,3.7841]
[1735560372091,0.29262,3423.3,3423.2,0.29262]
[1735560372590,0.29262,3423.3,3423.2,2.924]
[1735560372892,0.29263,3423.2,3423.1,0.8601]
[1735560373388,0.29263,3423.2,3423.1,3.7841]
[1735560375189,0.29263,3423.2,3423.1,4.235]
[1735560380297,0.29263,3423.2,3423.1,4.52764]
[1735560380590,0.29263,3423.2,3423.1,4.235]
[1735560380794,0.29263,3423.2,3423.1,4.52764]
[1735560382489,0.29263,3423.2,3423.1,4.235]
[1735560384695,0.29263,3423.2,3423.1,4.52764]
[1735560384889,0.29263,3423.2,3423.1,4.235]
[1735560386091,0.29263,3423.2,3423.1,1.311]
[1735560387697,3.73646553,3423.2,3423.1,1.311]
[1735560388794,4.17555485,3423.2,3423.1,1.311]
[1735560389994,0.29267,3422.7,3422.6,3.2078]
[1735560390292,0.29268,3422.6,3422.5,9.07865938]
[1735560390497,0.29269,3422.5,3422.4,9.96075938]
[1735560390998,0.29269,3422.5,3422.4,12.88475938]
[1735560391591,0.29269,3422.5,3422.4,3.8061]
[1735560391799,3.44383553,3422.6,3422.4,3.8061]
[1735560391993,3.44383553,3422.6,3422.5,0.29269]
[1735560392189,0.76831045,3422.8,3422.5,1.166]
[1735560392396,5.72157989,3423.1,3423.0,0.29265]
[1735560392695,5.72157989,3423.4,3423.3,0.29262]
[1735560393801,0.29261,3423.5,3423.4,0.29261]
[1735560394296,3.5004,3423.6,3423.5,0.2926]
[1735560394500,3.2078,3423.6,3423.5,0.2926]
[1735560396804,3.2078,3424.0,3423.2,1.3252]
[1735560397000,5.72157989,3424.3,3423.6,3.2078]
[1735560397302,0.29255,3424.2,3424.1,0.29255]
[1735560397701,5.72157989,3424.3,3424.2,0.29255]
[1735560398113,0.29252,3424.5,3424.1,3.2078]
[1735560398402,0.4472,3424.6,3424.2,0.8905]
[1735560398596,0.29253,3424.4,3424.2,1.18304]
[1735560398994,0.4472,3424.6,3424.2,0.8905]
[1735560399206,0.29254,3424.3,3424.2,0.8905]
[1735560401998,0.4472,3424.6,3424.2,1.18305]
[1735560402404,0.29252,3424.5,3424.2,1.18305]
[1735560402604,0.29252,3424.5,3424.3,0.29253]
[1735560403205,0.4391,3424.8,3424.3,0.29253]
[1735560403405,0.29252,3424.5,3424.3,0.29253]
[1735560403710,3.95797707,3424.9,3424.4,0.29252]
[1735560403711,0.29252,3424.6,3424.4,0.29252]
[1735560403910,0.29252,3424.6,3424.2,0.8905]
[1735560404211,0.29252,3424.6,3424.3,0.29253]
[1735560404707,3.95797707,3424.9,3424.3,0.29253]
[1735560404708,0.29252,3424.5,3424.3,0.29253]
[1735560404908,2.32977461,3424.7,3424.2,0.8905]
[1735560405109,0.29254,3424.3,3424.2,0.8905]
[1735560405310,2.32977461,3424.7,3424.2,0.8905]
[1735560405512,0.29253,3424.4,3424.2,1.18305]
[1735560406411,0.29252,3424.6,3424.4,0.29252]
[1735560406808,0.29252,3424.5,3424.3,0.29253]
[1735560407505,0.29249,3424.8,3424.3,0.29253]
[1735560407807,0.29253,3424.4,3424.2,1.18304]
[1735560409419,0.29249,3424.8,3424.2,1.18304]
[1735560409611,0.29253,3424.4,3424.2,1.18304]
[1735560410207,4.68919707,3424.9,3424.2,1.18304]
[1735560410407,0.29254,3424.4,3424.2,1.18304]
[1735560410809,0.29254,3424.4,3424.2,0.8905]
[1735560411011,0.29252,3424.5,3424.3,0.29253]
[1735560412209,0.29253,3424.4,3424.2,1.18304]
[1735560412407,0.29254,3424.3,3424.2,1.18304]
[1735560416919,0.29254,3424.3,3424.2,1.18305]
[1735560417118,0.8727,3424.6,3424.2,0.8905]
[1735560417415,0.29254,3424.3,3424.2,1.18304]
[1735560425828,0.8727,3424.6,3424.2,0.8905]
[1735560426033,0.8727,3424.6,3424.3,0.29254]
[1735560426034,0.29253,3424.4,3424.3,0.29254]
[1735560426223,0.29254,3424.3,3424.2,1.18304]
[1735560427830,0.29253,3424.4,3424.3,0.29254]
[1735560428624,0.4527,3424.6,3424.2,0.8905]
[1735560428825,3.2078,3424.7,3424.2,0.8905]
[1735560429026,0.29253,3424.4,3424.3,0.29253]
[1735560429328,4.58768611,3425.0,3424.9,0.29249]
[1735560430127,4.086,3425.6,3425.3,0.29245]
[1735560430128,4.58768611,3425.4,3425.3,0.29245]
[1735560431632,0.29244,3425.5,3425.3,0.29245]
[1735560432033,0.29244,3425.5,3425.4,0.29244]
[1735560432526,3.2078,3425.9,3425.1,3.2078]
[1735560432527,0.29242,3425.8,3425.1,3.2078]
[1735560432724,4.58768611,3426.1,3426.0,0.29239]
[1735560433828,4.88006611,3426.1,3425.6,0.4333]
[1735560434028,4.88006611,3426.1,3425.9,0.2924]
[1735560434330,0.29238,3426.1,3425.9,0.2924]
[1735560434931,0.29238,3426.1,3426.0,0.29239]
[1735560435627,3.2078,3426.3,3426.0,0.29239]
[1735560435833,0.29238,3426.2,3426.0,0.29239]
[1735560436135,0.29238,3426.1,3426.0,0.29239]
[1735560436926,0.29238,3426.2,3425.6,0.4333]
[1735560437933,0.29238,3426.2,3426.0,0.29238]
[1735560439230,0.29238,3426.2,3426.1,0.29238]
[1735560439930,0.29239,3426.1,3425.9,0.2924]
[1735560440127,0.29239,3426.1,3426.0,0.29239]
[1735560440327,0.29238,3426.2,3426.0,0.29239]
[1735560440527,3.2078,3426.3,3425.6,0.4333]
[1735560440930,3.2078,3426.3,3426.0,0.29239]
[1735560441130,0.29238,3426.1,3426.0,0.29239]
[1735560442634,3.2078,3426.3,3426.0,0.29239]
[1735560442833,0.29238,3426.2,3426.0,0.29239]
[1735560443332,0.71048,3426.2,3426.0,0.29239]
[1735560446141,0.29238,3426.1,3426.0,0.29239]
[1735560446335,0.4181,3426.2,3425.8,0.4515]
[1735560446639,0.71047,3426.2,3426.1,0.29238]
[1735560447545,0.71047,3426.2,3426.0,0.29239]
[1735560447837,0.71047,3426.2,3426.1,0.29238]
[1735560449041,2.74787461,3426.2,3425.6,0.4333]
[1735560449335,2.32977461,3425.9,3425.6,0.4333]
[1735560449541,0.29243,3425.6,3425.5,3.2078]
[1735560449839,2.32977461,3425.9,3425.5,3.2078]
[1735560450040,0.29242,3425.7,3425.6,0.29242]
[1735560450235,2.32977461,3425.9,3425.6,0.29242]
[1735560450437,0.29242,3425.7,3425.6,0.29242]
[1735560452139,0.8317,3426.1,3425.5,3.2078]
[1735560452438,0.4118,3426.1,3426.0,0.29239]
[1735560452637,0.70418,3426.1,3426.0,0.29239]
[1735560453640,0.29239,3426.0,3425.9,0.2924]
[1735560454242,0.4118,3426.1,3425.6,1.3145]
[1735560454444,0.4118,3426.1,3426.0,0.29239]
[1735560454641,3.2078,3426.3,3426.2,0.29237]
[1735560454850,0.29237,3426.2,3426.1,0.29238]
[1735560456342,3.50017,3426.3,3426.2,0.29237]
[1735560456538,3.50017,3426.3,3426.1,0.29238]
[1735560456950,3.50017,3426.3,3426.2,0.8653]
[1735560457242,0.29237,3426.3,3426.2,0.8653]
[1735560457443,3.50017,3426.3,3426.2,0.8653]
[1735560457748,3.50017,3426.3,3426.2,0.4338]
[1735560458048,3.2078,3426.3,3426.0,0.29239]
[1735560458247,0.70768,3426.2,3426.0,0.29239]
[1735560458645,0.29238,3426.1,3425.9,0.2924]
[1735560458845,0.29238,3426.1,3426.0,0.29239]
[1735560459147,0.29239,3426.1,3426.0,0.29239]
[1735560459943,0.29238,3426.1,3425.9,0.29239]
[1735560460251,0.29238,3426.1,3426.0,0.29239]
[1735560460749,0.29239,3426.0,3425.9,0.29239]
[1735560462251,0.29239,3426.0,3425.7,0.8589]
[1735560462252,0.29241,3425.8,3425.7,0.8589]
[1735560462449,0.29241,3425.8,3425.7,1.15132]
[1735560463748,0.29243,3425.6,3425.5,3.2078]
[1735560463944,0.29245,3425.3,3425.2,0.8381]
[1735560464246,0.29249,3424.9,3424.8,4.53136728]
[1735560465349,0.2925,3424.7,3424.6,3.50031]
[1735560465848,0.8454,3425.0,3424.6,3.2078]
[1735560466149,0.29252,3424.6,3424.4,1.13062]
[1735560466355,4.0532,3425.0,3424.4,0.8381]
[1735560466555,0.29252,3424.6,3424.4,1.13062]
[1735560466748,0.29252,3424.5,3424.4,1.13062]
[1735560467353,0.29252,3424.6,3424.5,0.29252]
[1735560468546,0.4544,3424.9,3424.5,0.29252]
[1735560468751,4.0532,3425.0,3424.4,0.8381]
[1735560469355,0.29249,3424.9,3424.8,0.29249]
[1735560470360,3.6411,3425.0,3424.4,0.8381]
[1735560470655,3.2078,3425.0,3424.9,0.29249]
[1735560473261,0.29247,3425.1,3424.9,0.29249]
[1735560473561,0.29247,3425.1,3425.0,0.4439]
[1735560473861,0.29246,3425.2,3425.0,0.73637]
[1735560474348,0.29246,3425.2,3425.1,0.72017]
[1735560474553,0.29246,3425.2,3425.1,0.4277]
[1735560475949,5.49716185,3425.3,3425.1,0.4277]
[1735560476155,5.78961185,3425.3,3425.1,0.72016]
[1735560476362,0.29246,3425.2,3425.1,0.72016]
[1735560476561,0.29246,3425.2,3425.1,0.4277]
[1735560477557,3.2078,3425.3,3425.1,0.4277]
[1735560477754,0.29246,3425.2,3425.1,0.72016]
[1735560478561,3.2078,3425.3,3425.1,0.72016]
[1735560478866,3.50026,3425.3,3425.1,0.72016]
[1735560480266,0.29246,3425.2,3425.1,0.72016]
[1735560480667,0.29246,3425.2,3425.1,0.72017]
[1735560482260,0.29246,3425.2,3425.1,0.4277]
[1735560482465,0.29247,3425.1,3425.0,0.4439]
[1735560482667,0.74457,3425.1,3425.0,0.4439]
[1735560483565,0.74457,3425.1,3425.0,0.73638]
[1735560483566,0.29247,3425.1,3425.0,0.73638]
[1735560483766,5.49716185,3425.3,3425.0,0.4439]
[1735560484063,4.81156185,3425.3,3425.2,0.29246]
[1735560484257,0.04366185,3425.3,3425.2,2.62223461]
[1735560484461,3.43146292,3425.5,3425.2,2.32977461]
[1735560484662,3.43146292,3425.5,3425.4,3.50024]
[1735560486061,4.58768611,3425.8,3425.4,3.2078]
[1735560486368,0.29241,3425.9,3425.8,0.29241]
[1735560486768,0.2924,3426.0,3425.9,0.2924]
[1735560489264,6.63926292,3426.3,3425.6,0.4131]
[1735560489473,0.29239,3426.0,3425.9,0.2924]
[1735560489670,0.29237,3426.2,3425.8,0.2924]
[1735560489865,0.2924,3426.0,3425.7,0.29242]
[1735560490070,0.2924,3426.0,3425.9,0.2924]
[1735560490866,0.29242,3425.7,3425.6,0.70552]
[1735560491073,0.29242,3425.7,3425.6,0.4131]
[1735560491368,0.29243,3425.6,3425.5,0.71643]
[1735560492768,0.29242,3425.7,3425.6,0.29242]
[1735560493272,0.71171,3425.8,3425.7,0.29242]
[1735560494264,0.2924,3426.0,3425.5,0.424]
[1735560494470,3.43146292,3426.2,3425.8,3.2078]
[1735560494671,3.43146292,3426.2,3426.1,0.29238]
[1735560495474,3.43146292,3426.4,3426.3,0.29237]
[1735560495871,3.72382292,3426.4,3426.3,0.29237]
[1735560497072,0.29236,3426.4,3426.3,0.29237]
[1735560497871,0.29237,3426.2,3426.1,0.72218]
[1735560498072,0.29237,3426.3,3426.2,0.29237]
[1735560499775,4.74716292,3426.6,3425.9,3.2078]
[1735560500278,0.29239,3426.0,3425.9,3.5002]
[1735560500670,0.29239,3426.0,3425.9,3.2078]
[1735560504377,3.2078,3426.2,3425.5,4.3758]
[1735560504579,0.29246,3425.2,3425.1,3.2078]
[1735560504877,0.29247,3425.1,3424.9,6.83421882]
[1735560505179,1.60157,3425.1,3424.9,6.83421882]
[1735560505878,0.29248,3425.0,3424.4,3.84586728]
[1735560506078,0.29252,3424.5,3424.4,3.84586728]
[1735560507273,3.2078,3424.8,3424.2,3.2078]
[1735560507479,0.29252,3424.5,3424.3,0.29253]
[1735560509081,3.2078,3424.8,3424.2,3.2078]
[1735560509582,3.2078,3424.8,3424.6,0.2925]
[1735560509771,3.2078,3424.8,3424.7,0.7331]
[1735560511077,3.2078,3424.8,3424.7,0.4406]
[1735560511279,3.2078,3424.8,3424.7,0.7331]
[1735560511478,3.50029,3424.8,3424.7,0.4406]
[1735560512274,3.2078,3424.8,3424.3,0.444]
[1735560512483,0.29253,3424.4,3424.2,3.50034]
[1735560513687,0.29254,3424.3,3424.2,3.2078]
[1735560513885,3.2078,3424.8,3424.2,3.2078]
[1735560514085,0.29252,3424.5,3424.3,0.29253]
[1735560514286,3.2078,3424.8,3424.2,3.2078]
[1735560514483,0.29252,3424.6,3424.4,0.29252]
[1735560515779,4.74056292,3425.1,3424.2,3.2078]
[1735560516183,0.29249,3424.9,3424.7,0.2925]
[1735560516383,0.29249,3424.9,3424.8,0.4354]
[1735560516885,0.8689,3425.1,3424.8,0.72789]
[1735560517087,0.4506,3425.1,3424.9,0.29248]
[1735560517288,0.74307,3425.1,3424.9,0.29248]
[1735560517687,0.29248,3425.0,3424.8,0.72789]
[1735560517986,0.74307,3425.1,3424.9,0.29249]
[1735560519982,0.4506,3425.1,3424.9,0.29249]
[1735560520189,0.29248,3425.0,3424.8,0.72789]
[1735560520490,3.43146292,3425.5,3424.9,2.32977461]
[1735560520787,3.43146292,3425.5,3425.4,0.29244]
[1735560522791,0.29241,3425.8,3425.7,0.29242]
[1735560523090,3.2078,3426.1,3425.3,0.73113]
[1735560523389,0.2924,3426.0,3425.9,0.2924]
[1735560524289,0.2924,3426.0,3425.8,0.2924]
[1735560524586,0.29238,3426.1,3425.9,3.50019]
[1735560524983,0.29735647,3426.2,3425.9,3.2078]
[1735560525180,0.29239,3426.0,3425.9,3.2078]
[1735560525383,0.29239,3426.1,3425.9,3.5002]
[1735560526088,0.74847,3426.3,3426.1,0.29237]
[1735560526289,0.29237,3426.2,3426.0,0.29239]
[1735560526488,0.29238,3426.1,3425.9,3.5002]
[1735560526689,0.29238,3426.2,3426.0,0.29239]
[1735560530087,0.29238,3426.1,3426.0,0.29239]
[1735560530279,0.29238,3426.2,3426.0,0.29239]
[1735560531384,0.4561,3426.3,3426.0,0.29239]
[1735560531589,0.29238,3426.1,3426.0,0.29239]
[1735560531892,0.29238,3426.1,3425.7,3.2078]
[1735560531893,0.29238,3426.1,3425.9,0.2924]
[1735560532091,0.29238,3426.1,3426.0,0.29239]
[1735560532780,0.29239,3426.0,3425.7,3.2078]
[1735560532987,0.4561,3426.3,3425.7,3.2078]
[1735560533386,0.29238,3426.1,3425.9,0.29239]
[1735560534483,0.29238,3426.1,3425.7,3.2078]
[1735560534682,0.29238,3426.1,3425.9,0.2924]